Cogmind - Beta 14 @@@ ROGUE MODE // 2024.10.12 @ 20:03:04 Player: nostromo Result: Destroyed by G-47 Trooper with Particle Gun Performance ------------- Evolutions (2) 1000 Regions Visited (4) 800 Robots Destroyed (28) 140 Value Destroyed (845) 845 Prototype IDs (0) 0 Alien Tech Used (0) 0 Bonus (0) 0 TOTAL SCORE: 2785 Bonus ------- None Cogmind --------- Core Integrity 0/550 Matter 211/300 Energy 440/440 System Corruption 0% Temperature Cool (9) Movement Walking (330) Ox3 Location -8/Materials Parts ------- > --- POWER (2) -------- Improved Ion Engine Deuterium Engine > --- PROPULSION (2) --- Aluminum Leg > --- UTILITY (4) ------ Small Storage Unit Terrain Scan Processor Targeting Computer Actuator Array > --- WEAPON (3) ------- Assault Rifle Improved Light Cannon > --- INVENTORY (8) ---- Deuterium Engine Improved Heat Sink Terrain Scan Processor Targeting Computer Targeting Computer Improved Melee Analysis Suite Improved Melee Analysis Suite Actuator Array Peak State ------------ > --- POWER ------------ Improved Ion Engine Deuterium Engine > --- PROPULSION ------- Aluminum Leg Aluminum Leg > --- UTILITY ---------- Small Storage Unit Terrain Scan Processor Targeting Computer Actuator Array > --- WEAPON ----------- Assault Rifle Improved Light Cannon Scythe > --- INVENTORY -------- Deuterium Engine Improved Heat Sink Terrain Scan Processor Targeting Computer Improved Melee Analysis Suite Improved Melee Analysis Suite Actuator Array Actuator Array [Rating: 22] Favorites ----------- Power Light Ion Engine Engine Light Ion Engine Propulsion Aluminum Leg Treads Light Treads Leg Aluminum Leg Wheel Compact Wheel Utility Small Storage Unit Device Actuator Array Storage Small Storage Unit Processor Terrain Scan Processor Protection Weapon Shielding Weapon Scythe Energy Cannon Beam Cannon Ballistic Gun Light Assault Rifle Ballistic Cannon Improved Light Cannon Launcher Grenade Launcher Special Weapon Mining Laser Slashing Weapon Scythe Build | -11 -10 -10 -9 -8 ------- Run | Yrd Mat Min Mat Mat Slots Evolved 4 | . . . 2 2 Power 1 | . . . . 1 Propulsion . | . . . . . Utility 2 | . . . 2 . Weapon 1 | . . . . 1 Parts Attached 56 | 7 7 4 16 22 Power 9 | 2 1 1 1 4 Engine 9 | 2 1 1 1 4 Core . | . . . . . Reactor . | . . . . . Propulsion 13 | 2 2 1 4 4 Treads 2 | . . . 2 . Leg 6 | . . . 2 4 Wheel 5 | 2 2 1 . . Hover . | . . . . . Flight . | . . . . . Utility 13 | 1 2 . 5 5 Device 7 | . . . 4 3 Storage 2 | 1 . . . 1 Processor 2 | . . . 1 1 Hackware . | . . . . . Protection 2 | . 2 . . . Artifact . | . . . . . Weapon 21 | 2 2 2 6 9 Energy Gun . | . . . . . Energy Cannon 3 | . . . . 3 Ballistic Gun 10 | 2 2 1 3 2 Ballistic Cannon 2 | . . . . 2 Launcher 1 | . . . 1 . Special Weapon 1 | . . 1 . . Impact Weapon . | . . . . . Slashing Weapon 4 | . . . 2 2 Piercing Weapon . | . . . . . Special Melee Weapon . | . . . . . Unidentified Prototypes . | . . . . . Parts Lost 22 | . 1 . 10 11 Power 4 | . 1 . 1 2 Propulsion 6 | . . . 3 3 Utility 4 | . . . 3 1 Weapon 8 | . . . 3 5 Highest Loss Streak 9 | . 1 . 4 9 To Critical Strikes . | . . . . . Average Slot Usage (%) 82 | . 83 100 79 78 Engine 8 | . 9 14 4 11 Treads 3 | . . . 8 . Leg 6 | . . . 6 14 Wheel 9 | . 24 28 3 . Device 12 | . . . 23 11 Storage 11 | . 14 14 11 9 Processor 5 | . . . 2 14 Protection 4 | . 11 14 1 . Ballistic Gun 10 | . 23 16 5 5 Ballistic Cannon 1 | . . . . 3 Special Weapon 1 | . . 11 . . Slashing Weapon 5 | . . . 10 5 Peak Build Rating 22 | 6 7 7 15 22 Average Rating 11 | 3 5 6 11 17 On Entrance 6 | . 6 4 7 14 Naked Turns . | . . . . . Heaviest Build 34 | 12 12 12 16 34 Greatest Support 40 | 26 26 32 40 20 Greatest Overweight (x) 7 | 1 2 . 4 7 Average Overweight (x) . | . . . . 1 Largest Inventory Capacity 8 | 8 8 8 8 8 Average Capacity 7 | 6 8 8 8 8 Most Carried 8 | 5 8 8 8 8 Average Carried 6 | 2 4 7 7 7 Final Capacity 8 | 8 8 8 8 8 Final Carried 8 | 1 8 8 8 8 Class Distribution -------------------- 69% | Mutant 20% | Scavenger-Mutant 10% | Gladiator Dominant Class ---------------- Mutant | -10/Materials Mutant | -10/Mines Mutant | -9/Materials Scavenger-Mutant | -8/Materials Resources | -11 -10 -10 -9 -8 ----------- Run | Yrd Mat Min Mat Mat Matter Collected 815 | 207 106 94 251 157 Remotely . | . . . . . Salvage Created 995 | . 75 . 618 302 Parts 56 | . 3 . 38 15 Haulers Intercepted 1 | . . . 1 . Recyclers Shooed 1 | . . . . 1 Parts Field Recycled . | . . . . . Retrieved Matter . | . . . . . Parts Self-Destructed . | . . . . . Prevented . | . . . . . Kills | -11 -10 -10 -9 -8 ------- Run | Yrd Mat Min Mat Mat Combat Hostiles Destroyed 16 | . 1 . 9 6 Melee 9 | . . . 4 5 Guns 6 | . 1 . 4 1 AOE 1 | . . . 1 . Classes Destroyed 8 | . 2 . 5 1 Worker 3 | . . . 3 . Builder 3 | . . . 3 . Hauler 1 | . . . 1 . Recycler 2 | . . . 2 . Watcher 3 | . 1 . 1 1 Grunt 12 | . 1 . 8 3 Sentry 2 | . . . 1 1 Hunter 2 | . . . . 2 Best Kill Streak 7 | . 1 . 7 4 Combat Bots Only 4 | . 1 . 2 4 Max Kills in Single Turn 2 | . 1 . 2 1 Gunslinging . | . . . . . Exploded 1 | . . . 1 . Melee 1 | . . . 1 1 Uniques/NPCs Destroyed . | . . . . . Combat | -11 -10 -10 -9 -8 -------- Run | Yrd Mat Min Mat Mat Hostile Shots Fired 271 | . 22 . 124 125 Missed 68 | . 9 . 28 31 Damage Taken 2929 | . 155 . 1405 1369 Core 973 | . 22 . 398 553 Absorbed by Shields . | . . . . . Redirected to Shielding 45 | . . . 45 . Core Remaining (%) 63 | 100 . 91 . . Volleys Fired 66 | . 17 2 36 11 Largest 2 | . 2 1 2 2 Hottest 100 | . 40 100 50 63 Shots Fired 115 | . 32 2 61 20 Gun 99 | . 32 . 57 10 Cannon 10 | . . . . 10 Launcher 4 | . . . 4 . Special 2 | . . 2 . . Kinetic 108 | . 32 . 57 19 Thermal 2 | . . 2 . . Explosive 4 | . . . 4 . Electromagnetic 1 | . . . . 1 Robot Hit Streak 15 | . 5 . 15 5 Robot Miss Streak 6 | . 4 5 6 3 Penetration Max . | . . . . . Secondary Targets 1 | . . . 1 . Max Gunslinging Chain 1 | . . . 1 . Shots Hit Robots 110 | . 16 . 74 20 Core Hits 46 | . 8 . 28 10 Critical Kills 1 | . . . . 1 Critical Parts Destroyed . | . . . . . Critical Strikes 5 | . . . 3 2 Destroy 1 | . . . . 1 Sever 4 | . . . 3 1 Melee Attacks 51 | . . . 38 13 Impact . | . . . . . Slashing 51 | . . . 38 13 Piercing . | . . . . . Sneak Attacks 9 | . . . 9 . Combat Hostiles . | . . . . . Follow-up Attacks 2 | . . . 2 . Damage Inflicted 2764 | . 127 . 2194 443 Guns 579 | . 127 . 382 70 Cannons 124 | . . . . 124 Explosions 532 | . . . 532 . Melee 1528 | . . . 1280 248 Ramming 1 | . . . . 1 Kinetic 677 | . 127 . 382 168 Thermal . | . . . . . Explosive 532 | . . . 532 . Electromagnetic 26 | . . . . 26 Impact . | . . . . . Slashing 1528 | . . . 1280 248 Piercing . | . . . . . Highest Corruption . | . . . . . Average Corruption . | . . . . . Corruption Purged . | . . . . . Corruption Blocked . | . . . . . Overload Shots . | . . . . . Overflow Damage 175 | . . . 175 . Projectiles . | . . . . . Explosions 25 | . . . 25 . Melee 150 | . . . 150 . Knockbacks 1 | . . . . 1 Impact . | . . . . . Kinetic 1 | . . . . 1 Secondary . | . . . . . Self-Inflicted Damage . | . . . . . Shots . | . . . . . Rammed . | . . . . . Targets Rammed 1 | . . . . 1 Kicked 1 | . . . . 1 Crushed . | . . . . . Highest Temperature 37 | . 37 20 19 21 Average Temperature 11 | . 15 12 7 8 Received Heat Transfer 1350 | . 108 . 702 540 Siege Activations . | . . . . . Robots Corrupted . | . . . . . Combat Hostiles . | . . . . . Parts Fried . | . . . . . Impact Corruptions . | . . . . . Robots Melted . | . . . . . Combat Hostiles . | . . . . . Parts Melted . | . . . . . Heat Transferred . | . . . . . Parts Sabotaged . | . . . . . Parts Stolen . | . . . . . Parts Stripped . | . . . . . Power Chain Reactions . | . . . . . Alert | -11 -10 -10 -9 -8 ------- Run | Yrd Mat Min Mat Mat Peak Influence 285 | . 46 18 285 187 Initial 76 | . . 17 6 76 Average 87 | . 32 17 137 91 Maximum Alert Level 1 | . . . 1 . Low Security (%) 89 | 100 100 100 72 100 Level 1 10 | . . . 27 . Level 2 . | . . . . . Level 3 . | . . . . . Level 4 . | . . . . . Level 5 . | . . . . . High Security . | . . . . . Max Security . | . . . . . Squads Dispatched 2 | . . . . 2 Investigation . | . . . . . Extermination . | . . . . . Reinforcement 2 | . . . . 2 Assault . | . . . . . Garrison . | . . . . . Intercept . | . . . . . Searches Triggered . | . . . . . Construction Impeded . | . . . . . Haulers Reinforced . | . . . . . Active Scanning Responses . | . . . . . Cargo Convoy Interrupts . | . . . . . Stealth | -11 -10 -10 -9 -8 --------- Run | Yrd Mat Min Mat Mat Distress Signals 5 | . . . 3 2 Communications Jammed . | . . . . . Distress Signals . | . . . . . Times Spotted 39 | . 4 . 17 18 Peak Tracking Total 5 | . 2 . 4 5 Tactical Retreats 1 | . . . 1 . Traps | -11 -10 -10 -9 -8 ------- Run | Yrd Mat Min Mat Mat Traps Triggered 6 | . 3 . . 3 Indirectly . | . . . . . Trap Hack Attempts . | . . . . . Triggered . | . . . . . Disarmed . | . . . . . Reprogrammed . | . . . . . Reused . | . . . . . Traps Extracted . | . . . . . Installed . | . . . . . Triggered . | . . . . . Machines | -11 -10 -10 -9 -8 ---------- Run | Yrd Mat Min Mat Mat Machines Disabled 7 | . . . 6 1 Max in Single Turn 5 | . . . 5 1 Machines Repaired . | . . . . . Machines Dismantled . | . . . . . Machines Sabotaged . | . . . . . Overloaded Fab Kills . | . . . . . Hacking | -11 -10 -10 -9 -8 --------- Run | Yrd Mat Min Mat Mat Machines Accessed 3 | . 1 . . 2 Terminals 3 | . 1 . . 2 Fabricators . | . . . . . Repair Stations . | . . . . . Recycling Units . | . . . . . Scanalyzers . | . . . . . Garrison Access . | . . . . . Total Hacks 6 | . 3 . . 3 Successful 4 | . 2 . . 2 Failed 2 | . 1 . . 1 Catastrophic . | . . . . . Database Lockouts . | . . . . . Manual . | . . . . . Terminals 6 | . 3 . . 3 Fabricators . | . . . . . Repair Stations . | . . . . . Recycling Units . | . . . . . Scanalyzers . | . . . . . Garrison Access . | . . . . . Terminal Hacks 4 | . 2 . . 2 Record 4 | . 2 . . 2 Fabricator Hacks . | . . . . . Repair Station Hacks . | . . . . . Recycling Unit Hacks . | . . . . . Scanalyzer . | . . . . . Garrison Access Hacks . | . . . . . Unauthorized Hacks . | . . . . . Terminals . | . . . . . Fabricators . | . . . . . Repair Stations . | . . . . . Recycling Units . | . . . . . Scanalyzers . | . . . . . Garrison Access . | . . . . . Data Cores Recovered . | . . . . . Used . | . . . . . Hacking Detections 1 | . . . . 1 Full Trace Events . | . . . . . Feedback Events . | . . . . . Feedback Blocked . | . . . . . Robot Schematics Acquired . | . . . . . Robots Built . | . . . . . Authchips . | . . . . . Time . | . . . . . Total Robot Build Rating . | . . . . . Part Schematics Acquired . | . . . . . Parts Built . | . . . . . Authchips . | . . . . . Time . | . . . . . Total Part Build Rating . | . . . . . Parts Repaired . | . . . . . Time . | . . . . . Parts Recycled . | . . . . . Recycled Matter . | . . . . . Retrieved Matter . | . . . . . Retrieved Components . | . . . . . Parts Scanalyzed . | . . . . . Part Schematics Acquired . | . . . . . Parts Damaged . | . . . . . Bothacking | -11 -10 -10 -9 -8 ------------ Run | Yrd Mat Min Mat Mat Used RIF Installer . | . . . . . Robots Hacked . | . . . . . Non-combat . | . . . . . Combat . | . . . . . Robot Hacks Applied . | . . . . . Relay Couplers Released . | . . . . . Fabnet Peak Effective % . | . . . . . Robots Rewired . | . . . . . Allies Hacked . | . . . . . Hacks Repelled . | . . . . . Allies | -11 -10 -10 -9 -8 -------- Run | Yrd Mat Min Mat Mat Total Allies 1 | . . 1 . . Largest Group 1 | . . 1 1 . Highest-Rated Group 31 | . . 31 31 . Highest-Rated Ally 31 | . . 31 31 . Total Orders . | . . . . . Ally Attacks . | . . . . . Total Damage . | . . . . . Kills . | . . . . . Allies Corrupted . | . . . . . Allies Melted . | . . . . . Intel | -11 -10 -10 -9 -8 ------- Run | Yrd Mat Min Mat Mat Robot Analysis Total . | . . . . . Derelict Logs Recovered 1 | . . 1 . . Drone Launches . | . . . . . Drone Recoveries . | . . . . . Exploration | -11 -10 -10 -9 -8 ------------- Run | Yrd Mat Min Mat Mat Turns Passed 2008 | 44 287 302 751 624 Spaces Moved 1153 | 45 240 274 378 216 Core 43 | 25 4 . 4 10 Treads 117 | . . . 117 . Legs 384 | . . . 178 206 Wheels 609 | 20 236 274 79 . Hover . | . . . . . Flight . | . . . . . Fastest Speed 50 | 50 90 100 100 120 Average Speed 123 | 68 92 100 130 186 Slowest Speed 400 | 100 150 100 250 400 Overloaded Moves . | . . . . . Propulsion Burnouts . | . . . . . Robots Hopped . | . . . . . Cave-ins Triggered . | . . . . . Exploration Rate (%) 32 | 4 43 65 35 16 Regions Visited 4 Branch Regions 1 Pre-discovered Areas 1 | . . 1 . . Known Exits Taken . | . . . . . Unknown Exits Taken 4 | 1 1 1 1 . Scrap Searched 2 | . . 2 . . Spaces Dug 1 | . . 1 . . Terrain Destroyed 23 | . . 1 21 1 Melee . | . . . . . Projectile 2 | . . 1 . 1 AOE 21 | . . . 21 . Terrain Rammed . | . . . . . Walls Destroyed . | . . . . . Machines Disabled . | . . . . . Actions | -11 -10 -10 -9 -8 --------- Run | Yrd Mat Min Mat Mat Total 1549 | 56 276 296 528 393 Wait 177 | . 4 12 46 115 Move 1149 | 44 239 273 377 216 Hop . | . . . . . Pick Up 40 | 5 9 4 11 11 Fast Attach 23 | 2 5 . 5 11 Attach 27 | 4 2 4 10 7 Detach 1 | . . . 1 . Swap 6 | 1 . . 1 4 Drop 10 | . . 1 5 4 Fire 66 | . 17 2 36 11 Melee 49 | . . . 36 13 Ram . | . . . . . Kick 1 | . . . . 1 Crush . | . . . . . Escape Stasis . | . . . . . Rewire . | . . . . . Trap . | . . . . . Miscellaneous . | . . . . . Route ------- -11/Scrapyard -10/Materials -10/Mines -9/Materials -8/Materials History --------- Turn | Location | Event 12 | -11/Scrapyard | Discovered new exit (range 16) 45 | -11/Scrapyard | Entered Materials 201 | -10/Materials | Discovered new exit (range 9) 302 | -10/Materials | Build established: Mutant 332 | -10/Materials | Entered Mines 362 | -10/Mines | Learned location of Mines (-9) 364 | -10/Mines | Received a Mining Laser from a helpful Derelict 450 | -10/Mines | Discovered new exit (range 9) 634 | -10/Mines | Entered Materials 634 | -9/Materials | Accompanied by 1 ally 634 | -9/Materials | Evolved 2 slots: Utility x2 760 | -9/Materials | Lost 4 parts (1p1n1u1w) 1017 | -9/Materials | Core integrity fell below 50% 1130 | -9/Materials | Core integrity fell below 20% 1365 | -9/Materials | Discovered new exit (range 15) 1385 | -9/Materials | Entered another Materials area 1385 | -8/Materials | Evolved 2 slots: Power x1, Weapon x1 1546 | -8/Materials | Core integrity fell below 50% 1582 | -8/Materials | Lost 9 parts (2p2n1u4w) 1791 | -8/Materials | Core integrity fell below 20% 1898 | -8/Materials | Build established: Scavenger-Mutant 2009 | -8/Materials | Destroyed by G-47 Trooper with Particle Gun Last Messages --------------- K-01 Serf collects debris. R-06 Scavenger collects Carbon-fiber Leg. K-01 Serf collects debris. R-06 Scavenger collects Imp. Signal Interpreter. K-01 Serf collects debris. R-06 Scavenger collects Imp. Sensor Array. K-01 Serf collects debris. R-06 Scavenger collects Imp. Hover Unit. Acquired 2 matter. K-01 Serf cleans the Atomic Centrifuge. K-01 Serf cleans the Terminal. O-24 Administrator uses terminal to summon reinforcements. ALERT: Hostiles spotted, dispatching reinforcements to Terminal M010. O-24 Administrator locks terminal. K-01 Serf cleans the Terminal. W-25 Informer sends out distress signal. K-01 Serf cleans the Terminal. Aluminum Leg destroyed. Map ----- +----------------------------------------------------+ | ?????????????????????????????????????????????????? | | ?????????????????????????????????????????????????? | | ?????????????????????????????????????????????????? | | ?????????????????????????????????????????????????? | | ?????????????????????????????????????????????????? | | ?????????????????????????????????????????????????? | | ?????????????????????????????????????????????????? | | ?????????????????????????????????????????????????? | | ?????????????????????????????????????????????????? | | ##???????????????????????????????????????????????? | | ##???????????????????????????????????????????????? | | ##???????????????????????????????????????????????? | | # ???????????????????????????????????????????????? | | # ???????????????????????????????????????????????? | | # ???????????????????????????????????????????????? | | / ?????????????????????#####?????????????????????? | | # ????????????????????? ?????????????????????? | | # ##?????????????? ?????????????????????? | | #########?????????????? ?????????????????????? | | ##??????????????# #?????????????????????? | | ##??????????????# #?????????????????????? | | % [[##### """ ""????#w #?????????????????????? | | ^ []############????# #?????????????????????? | | % # ]! ##????# k#?????????????????????? | | % #% ! ##????# #?????????????????????? | | ! % %+!% ! ##????# @o#?????????????????????? | | %#= = ##????# #?????????????????????? | | ############????# #?????????????????????? | | ############????# ############??????????? | | #### ##??????????????# ## #??????????? | | #### ##?????????????## ## #??????????? | | T## ##?????????????# # """ """ #??????????? | | ""## ##?##??????????# T # """ """ #??????????? | | #### #### ######????# "" + """ """ #??????????? | | #### ## #????# gg # #??????????? | | #### ## """ #????# k # #??????????? | | #### ## "T" ####### ## #??????????? | | #### ## # # g############??????????? | | #### ## # """ # #?????????????????????? | | #### ## """ # """ + #?????????????????????? | | #### ## """ # """ # #?????????????????????? | | ##?# ## """ # # #?????????????????????? | | #### ## # """ # #?????????????????????? | | ### #####+#### """ # #?????????????????????? | | ### / """ # #?????????????????????? | | ??# ### # #?????????????????????? | | ??# #?####### /?????????????????????? | | ??# ########???????# #?????????????????????? | | ??#######??????????????# #?????????????????????? | | ???????????????????????# #?????????????????????? | +----------------------------------------------------+ Best States ------------- Heat Dissipation 38 Energy Generation 21 Energy Capacity 440 Matter Stores 300 Matter Capacity 300 Sight Range 16 Robot Scan Range 14 Terrain Scan Density 85 Weapon Shielding 33 Evasion (%) 55 Targeting Accuracy 5 Recoil Reduction 2 Item Schematics ----------------- None Robot Schematics ------------------ None Fabricated ------------ Nothing Alien Tech Used ----------------- None Achievements -------------- Close Call Challenges ------------ None Game ------ Seed SiegeConstructChronowheel Manual? 0 Play Time 00:27:55 Cumulative 3.0 hours Start 2024.10.12 @ 19:33:08 End 2024.10.12 @ 20:03:04 Sessions 1 Manual Loads 0 Difficulty Rogue Special Mode None Game No. 6 Rogue 6 Adventurer 0 Explorer 0 Win Type - Total 0 Types 0/0/0/0/0/0/0/0/0 Lore% 0 Gallery% 7 Achievement% 5 Wizard Run 0 Options --------- Layout 1 ASCII 0 Keyboard 0 Movement Mouse Keybinds 0 Fullscreen 1 Font 32/SmallcapsGlow Map View 50x40 Zoom Use 0% Tactical HUD 0 Map Filters NONE Filters NONE Steam 1 RUN: 077fbbad-7826-4213-939d-01c382279451